bitfinex-derivatives/quotes_BTCF0:USTF0_20250827
["timestamp","ask_amount","ask_price","bid_price","bid_amount"]
[1756277670543,0.1448472,111140.0,111130.0,2.1874256]
[1756277670844,0.10695,111140.0,111130.0,2.1874256]
[1756277671246,0.1969272,111140.0,111130.0,2.1874256]
[1756277671441,0.1902072,111140.0,111130.0,2.1874256]
[1756277671940,0.1881272,111140.0,111130.0,2.1874256]
[1756277672346,0.16037401,111150.0,111140.0,0.2485372]
[1756277672644,0.16037401,111150.0,111140.0,1.51494534]
[1756277673033,0.16037401,111150.0,111140.0,1.25242019]
[1756277673234,0.16037401,111150.0,111140.0,1.51494534]
[1756277673544,0.2220765,111160.0,111150.0,0.15856]
[1756277673743,0.21729293,111170.0,111150.0,1.52243515]
[1756277673947,0.111199,111160.0,111150.0,1.35604]
[1756277674645,0.089969,111160.0,111150.0,1.35604]
[1756277675246,0.089969,111160.0,111150.0,1.61856515]
[1756277675547,0.196919,111160.0,111150.0,1.61856515]
[1756277677049,0.222119,111160.0,111150.0,1.61856515]
[1756277677437,0.196919,111160.0,111150.0,1.9710594]
[1756277678037,0.196919,111160.0,111150.0,1.1343794]
[1756277678250,0.196919,111160.0,111150.0,1.9707794]
[1756277678847,0.196919,111160.0,111150.0,1.9717794]
[1756277679851,0.196919,111160.0,111150.0,1.9707794]
[1756277680050,0.196919,111160.0,111150.0,1.9717794]
[1756277680854,0.196919,111160.0,111150.0,0.52036]
[1756277681151,0.196919,111160.0,111150.0,1.8813703]
[1756277682150,0.196919,111160.0,111150.0,1.70881425]
[1756277684050,0.196919,111160.0,111150.0,1.61884515]
[1756277684345,0.196919,111160.0,111150.0,1.8813703]
[1756277685457,0.196919,111160.0,111150.0,1.61884515]
[1756277685649,0.241879,111160.0,111150.0,1.61788515]
[1756277685849,0.287439,111160.0,111150.0,1.61788515]
[1756277686550,0.267079,111160.0,111150.0,1.61788515]
[1756277688056,0.287439,111160.0,111150.0,1.35536]
[1756277688255,0.287439,111160.0,111150.0,1.61788515]
[1756277688560,0.245199,111160.0,111150.0,1.61788515]
[1756277688863,0.196919,111160.0,111150.0,1.61788515]
[1756277689053,0.196919,111160.0,111150.0,1.61688515]
[1756277689558,0.196919,111160.0,111150.0,1.8794103]
[1756277689758,0.196919,111160.0,111150.0,1.9693795]
[1756277691458,0.193469,111160.0,111150.0,1.8804103]
[1756277691761,0.183569,111160.0,111150.0,1.8804103]
[1756277691959,0.183569,111160.0,111150.0,1.0454103]
[1756277692158,0.183569,111160.0,111150.0,1.8802103]
[1756277692362,0.10695,111160.0,111150.0,1.8802103]
[1756277692863,0.191879,111160.0,111150.0,1.8802103]
[1756277693765,0.190889,111160.0,111150.0,1.8802103]
[1756277695862,0.190889,111160.0,111150.0,1.9701795]
[1756277697165,0.190259,111160.0,111150.0,1.9701795]
[1756277697364,0.146889,111160.0,111150.0,1.9701795]
[1756277698068,0.145229,111160.0,111150.0,1.9701795]
[1756277699064,0.139049,111160.0,111150.0,1.9701795]
[1756277699565,0.136979,111160.0,111150.0,1.9701795]
[1756277699865,0.134629,111160.0,111150.0,1.9701795]
[1756277700262,0.109929,111160.0,111150.0,1.9701795]
[1756277700771,0.101089,111160.0,111150.0,1.9701795]
[1756277701067,0.070399,111160.0,111150.0,1.9701795]
[1756277701566,0.063679,111160.0,111150.0,1.9701795]
[1756277702268,0.37208475,111170.0,111150.0,1.9701795]
[1756277702462,0.41704475,111170.0,111160.0,1.0540803]
[1756277702662,0.41704475,111170.0,111160.0,1.07197889]
[1756277702862,0.41388475,111170.0,111160.0,1.07197889]
[1756277703067,0.39747475,111170.0,111160.0,1.07197889]
[1756277703565,0.39477475,111170.0,111160.0,1.07197889]
[1756277703867,0.39413475,111170.0,111160.0,1.07197889]
[1756277704167,0.50108475,111170.0,111160.0,1.07197889]
[1756277704863,0.2385596,111170.0,111160.0,1.07197889]
[1756277705064,0.41056475,111170.0,111160.0,1.07197889]
[1756277705668,0.43576475,111170.0,111160.0,1.07197889]
[1756277705867,0.1732396,111170.0,111160.0,1.07197889]
[1756277706566,0.1480396,111170.0,111160.0,1.07197889]
[1756277706962,0.1480396,111170.0,111160.0,1.16194009]
[1756277707872,0.1480396,111170.0,111160.0,1.07197889]
[1756277709068,0.2194496,111170.0,111160.0,0.54692859]
[1756277709268,0.2194496,111170.0,111160.0,1.07197889]
[1756277709469,0.1963196,111170.0,111160.0,1.07197889]
[1756277710873,0.1480396,111170.0,111160.0,1.07197889]
[1756277712073,0.1480396,111170.0,111160.0,0.54692859]
[1756277712266,0.1480396,111170.0,111160.0,1.07197889]
[1756277712875,0.2442496,111170.0,111160.0,1.38140859]
[1756277713067,0.50677475,111170.0,111160.0,1.07197889]
[1756277714370,0.1480396,111170.0,111160.0,1.07197889]
[1756277714570,0.1955996,111170.0,111160.0,1.07197889]
[1756277715075,0.45812475,111170.0,111160.0,1.07197889]
[1756277715874,0.50677475,111170.0,111160.0,0.54692859]
[1756277716073,0.2442496,111170.0,111160.0,1.07197889]
[1756277716469,0.50677475,111170.0,111160.0,1.07197889]
[1756277717575,0.50977475,111170.0,111160.0,1.07197889]
[1756277717776,0.48741475,111170.0,111160.0,1.07197889]
[1756277718174,0.2248896,111170.0,111160.0,1.07197889]
[1756277718375,0.2472496,111170.0,111160.0,0.54692859]
[1756277718575,0.2472496,111170.0,111160.0,1.07197889]
[1756277719277,0.50977475,111170.0,111160.0,1.07197889]
[1756277722169,0.2472496,111170.0,111160.0,1.07197889]
[1756277722369,0.50977475,111170.0,111160.0,1.07197889]
[1756277722570,0.2472496,111170.0,111160.0,1.07197889]
[1756277723279,0.50977475,111170.0,111160.0,1.07197889]
[1756277723470,0.50977475,111170.0,111160.0,0.54692859]
[1756277723676,0.2472496,111170.0,111160.0,1.07197889]
[1756277723876,0.50977475,111170.0,111160.0,1.07197889]
[1756277724978,0.52952007,111170.0,111160.0,0.80945374]
[1756277725374,1.38204522,111170.0,111160.0,0.11339859]
[1756277725577,1.38204522,111170.0,111160.0,0.0292]
[1756277725978,1.74284522,111170.0,111160.0,0.0292]
[1756277728770,0.1096794,111150.0,111140.0,0.47636269]
[1756277728968,0.50742136,111150.0,111140.0,0.98731784]
[1756277729180,0.50742136,111150.0,111140.0,0.72479269]
[1756277729579,0.50742136,111150.0,111140.0,0.98731784]
[1756277730081,0.50742136,111150.0,111140.0,0.98831784]
[1756277730280,0.61437136,111150.0,111140.0,0.98831784]
[1756277730674,0.97437136,111150.0,111140.0,0.62751784]
[1756277730876,0.61437136,111150.0,111140.0,0.39449269]
[1756277731679,0.66437136,111150.0,111140.0,0.65701784]
[1756277732585,0.63437136,111150.0,111140.0,0.65701784]
[1756277732882,1.00664088,111150.0,111140.0,0.65701784]
[1756277733184,1.00864088,111150.0,111140.0,0.65601784]
[1756277733884,1.00864088,111150.0,111140.0,0.62429784]
[1756277734086,1.00864088,111150.0,111140.0,0.39349269]
[1756277735884,0.68864088,111150.0,111140.0,0.39349269]
[1756277736084,1.52308088,111150.0,111140.0,0.65601784]
[1756277738785,1.50393088,111150.0,111140.0,0.65601784]
[1756277738988,0.29104573,111150.0,111140.0,1.27934299]
[1756277739186,0.27118892,111150.0,111140.0,1.52934299]
[1756277741387,0.27118892,111150.0,111140.0,1.35416029]
[1756277741788,0.27118892,111150.0,111140.0,1.00429269]
[1756277741983,0.27118892,111150.0,111140.0,1.35416029]
[1756277743292,0.27118892,111150.0,111140.0,2.18860029]
[1756277743591,0.27118892,111150.0,111140.0,1.35416029]
[1756277746394,0.0955831,111150.0,111140.0,1.35416029]
[1756277746596,0.1855525,111150.0,111140.0,1.35416029]
[1756277748298,0.1855525,111150.0,111140.0,1.00429269]
[1756277748497,0.1855525,111150.0,111140.0,1.35416029]
[1756277750993,0.1855525,111150.0,111140.0,2.18856029]
[1756277751194,0.2107525,111150.0,111140.0,2.18856029]
[1756277751399,0.2319225,111150.0,111140.0,2.18856029]
[1756277752095,0.2319225,111150.0,111140.0,1.35416029]
[1756277752295,0.1855525,111150.0,111140.0,1.44413769]
[1756277753102,0.1855525,111150.0,111140.0,1.35416029]
[1756277755909,0.1855525,111150.0,111140.0,1.44413769]
[1756277757505,0.2539225,111150.0,111140.0,1.44413769]
[1756277760006,0.2539225,111150.0,111140.0,1.09427009]
[1756277760207,0.2539225,111150.0,111140.0,1.44413769]
[1756277762209,0.2539225,111150.0,111140.0,1.35416029]
[1756277762507,0.2539225,111150.0,111140.0,2.18844029]
[1756277763403,0.2539225,111150.0,111140.0,2.36339511]
[1756277763808,0.2539225,111150.0,111140.0,2.45337251]
[1756277764008,0.2791225,111150.0,111140.0,2.45337251]
[1756277765010,0.2539225,111150.0,111140.0,2.45337251]
[1756277765809,0.2539225,111150.0,111140.0,2.20337251]
[1756277767509,0.2539225,111150.0,111140.0,1.27911511]
[1756277767705,0.2791225,111150.0,111140.0,2.11331511]
[1756277768513,0.3424825,111150.0,111140.0,0.75429269]
[1756277768815,0.3676825,111150.0,111140.0,2.11331511]
[1756277770216,0.3676825,111150.0,111140.0,2.11327511]
[1756277770516,0.63009371,111150.0,111140.0,1.27911511]
[1756277770811,0.63009371,111150.0,111140.0,0.37546]
[1756277770812,1.75340371,111150.0,111140.0,0.37546]
[1756277771016,1.54785121,111150.0,111140.0,0.13374]
[1756277771413,1.54785121,111150.0,111140.0,0.16623]
[1756277771815,1.63782061,111150.0,111140.0,0.16623]
[1756277772819,1.63782061,111150.0,111140.0,0.09531]
[1756277773013,1.63782061,111150.0,111140.0,0.05437]
[1756277773314,1.76477061,111150.0,111140.0,0.0295]
[1756277773817,2.05477061,111150.0,111140.0,0.0295]
[1756277774118,2.05477061,111150.0,111140.0,0.0558]
[1756277774419,1.8323594,111150.0,111140.0,0.0658]
[1756277774619,1.76477061,111150.0,111140.0,0.0658]
[1756277775118,2.04477061,111150.0,111140.0,0.0395]
[1756277775318,2.04477061,111150.0,111140.0,0.0295]
[1756277775521,1.76477061,111150.0,111140.0,0.0558]
[1756277775818,1.836767,111150.0,111140.0,0.0558]
[1756277776013,1.836767,111150.0,111140.0,0.0295]
[1756277778420,2.186767,111150.0,111140.0,0.0295]
[1756277778728,1.866767,111150.0,111140.0,0.0295]
[1756277779824,2.156767,111150.0,111140.0,0.0295]
[1756277780221,1.98033448,111150.0,111140.0,0.0558]
[1756277780424,2.30399569,111150.0,111140.0,0.0295]
[1756277780616,0.0907073,111140.0,111130.0,0.49878]
[1756277780823,0.63552972,111140.0,111130.0,0.09742]
[1756277781118,0.63552972,111140.0,111130.0,0.07876]
[1756277781524,0.37311851,111140.0,111130.0,0.07876]
[1756277781722,0.63552972,111140.0,111130.0,0.07876]
[1756277782724,0.68223972,111140.0,111130.0,0.07876]
[1756277783325,0.68223972,111140.0,111130.0,0.15181]
[1756277783526,0.68423972,111140.0,111130.0,0.15281]
[1756277784015,0.68623972,111140.0,111130.0,0.11932]
[1756277784423,0.68623972,111140.0,111130.0,0.07876]
[1756277785225,0.79318972,111140.0,111130.0,0.07876]
[1756277785424,0.79318972,111140.0,111130.0,0.11125]
[1756277786225,0.79318972,111140.0,111130.0,0.15181]
[1756277788529,0.77318972,111140.0,111130.0,0.17047]
[1756277788727,1.60718972,111140.0,111130.0,0.17047]
[1756277789323,0.77318972,111140.0,111130.0,0.43288121]
[1756277789525,1.60718972,111140.0,111130.0,0.43288121]
[1756277790029,1.60718972,111140.0,111130.0,0.17047]
[1756277791228,1.60718972,111140.0,111130.0,0.43288121]
[1756277791430,1.0823673,111140.0,111130.0,0.43288121]
[1756277791623,0.77318972,111140.0,111130.0,0.43288121]
[1756277791823,1.60714972,111140.0,111130.0,0.43288121]
[1756277792025,1.60714972,111140.0,111130.0,0.17047]
[1756277792229,1.60714972,111140.0,111130.0,0.43288121]
[1756277794535,0.77318972,111140.0,111130.0,0.43288121]
[1756277794731,1.0823273,111140.0,111130.0,0.43288121]
[1756277795032,1.60710972,111140.0,111130.0,0.43288121]
[1756277796342,0.77318972,111140.0,111130.0,0.43288121]
[1756277796534,1.60710972,111140.0,111130.0,0.43288121]
[1756277798632,0.77290972,111140.0,111130.0,0.43288121]
[1756277798837,1.60678972,111140.0,111130.0,0.43288121]
[1756277799234,1.60706972,111140.0,111130.0,0.05606]
[1756277799729,1.60706972,111140.0,111130.0,0.07874]
[1756277799933,1.60706972,111140.0,111130.0,0.16941]
[1756277803040,1.60706972,111140.0,111130.0,0.07874]
[1756277806046,1.92706972,111140.0,111130.0,0.07874]
[1756277806242,1.62706972,111140.0,111130.0,0.07874]
[1756277806844,1.62706972,111140.0,111130.0,0.11083]
[1756277807044,1.62706972,111140.0,111130.0,0.07874]
[1756277807045,1.91706972,111140.0,111130.0,0.07874]
[1756277807246,1.63706972,111140.0,111130.0,0.07874]
[1756277807441,1.90706972,111140.0,111130.0,0.07874]
[1756277809342,1.90706972,111140.0,111130.0,0.05606]
[1756277810447,1.90706972,111140.0,111130.0,0.02976]
[1756277813244,0.0907155,111130.0,111120.0,0.52877]
[1756277813444,0.37319333,111130.0,111120.0,0.73877]
[1756277813643,0.37319333,111130.0,111120.0,0.70668]
[1756277813845,0.37319333,111130.0,111120.0,0.49668]
[1756277814046,0.39319333,111130.0,111120.0,0.52877]
[1756277814344,0.39419333,111130.0,111120.0,0.52877]
[1756277814546,0.37419333,111130.0,111120.0,0.52877]
[1756277815349,0.48214333,111130.0,111120.0,0.52877]
[1756277817446,1.36218333,111130.0,111120.0,0.52877]
[1756277818244,0.52858333,111130.0,111120.0,0.52877]
[1756277818546,0.26617212,111130.0,111120.0,0.79118121]
[1756277818747,1.36218333,111130.0,111120.0,0.79118121]
[1756277819849,1.36218333,111130.0,111120.0,0.52877]
[1756277820155,1.36218333,111130.0,111120.0,0.79118121]
[1756277820346,1.36218333,111130.0,111120.0,0.52877]
[1756277821156,1.36246333,111130.0,111120.0,0.52877]
[1756277821346,1.66246333,111130.0,111120.0,0.52877]
[1756277821546,1.36246333,111130.0,111120.0,0.52877]
[1756277828156,2.19487454,111130.0,111120.0,0.3893]
[1756277828348,0.1369915,111110.0,111100.0,0.49768]
[1756277828548,0.9705115,111110.0,111100.0,0.7262124]
[1756277828753,1.23292271,111110.0,111100.0,0.7262124]
[1756277829959,1.23292271,111110.0,111100.0,0.7272124]
[1756277830256,1.58292271,111110.0,111100.0,0.1850724]
[1756277830555,1.33983271,111110.0,111100.0,0.80828361]
[1756277830860,0.2439415,111110.0,111100.0,0.80828361]
[1756277831160,1.31126271,111110.0,111100.0,0.80828361]
[1756277831360,1.33983271,111110.0,111100.0,0.80828361]
[1756277831558,1.33983271,111110.0,111100.0,0.81028361]
[1756277831758,0.50635271,111110.0,111100.0,0.81028361]
[1756277831958,1.33983271,111110.0,111100.0,0.81028361]
[1756277832563,1.33983271,111110.0,111100.0,0.80828361]
[1756277832762,0.50635271,111110.0,111100.0,0.77484361]
[1756277832956,1.33983271,111110.0,111100.0,0.77484361]
[1756277833161,1.33983271,111110.0,111100.0,0.80928361]
[1756277833665,1.33987271,111110.0,111100.0,0.80828361]
[1756277835268,1.33987271,111110.0,111100.0,0.5458724]
[1756277835466,1.33987271,111110.0,111100.0,0.80828361]
[1756277837567,1.42447271,111110.0,111100.0,0.80828361]
[1756277840071,1.47121271,111110.0,111100.0,0.80828361]
[1756277841073,1.2088015,111110.0,111100.0,0.80828361]
[1756277841279,1.47121271,111110.0,111100.0,0.80828361]
[1756277843482,0.63769271,111110.0,111100.0,0.80828361]
[1756277843676,1.47113271,111110.0,111100.0,0.80828361]
[1756277844075,0.60912271,111110.0,111100.0,1.07069482]
[1756277844381,1.44256271,111110.0,111100.0,1.07069482]
[1756277844581,1.44256271,111110.0,111100.0,0.80828361]
[1756277844880,1.47113271,111110.0,111100.0,0.80828361]
[1756277846080,1.2087215,111110.0,111100.0,0.80828361]
[1756277846287,1.44256271,111110.0,111100.0,0.80828361]
[1756277846780,1.47113271,111110.0,111100.0,0.80828361]
[1756277847585,1.55380271,111110.0,111100.0,0.80828361]
[1756277849485,1.2913915,111110.0,111100.0,0.80828361]
[1756277849785,1.55380271,111110.0,111100.0,0.44748361]
[1756277849982,1.2913915,111110.0,111100.0,0.44748361]
[1756277850176,1.55380271,111110.0,111100.0,0.1850724]
[1756277850381,1.2913915,111110.0,111100.0,0.44748361]
[1756277850585,1.55380271,111110.0,111100.0,0.44748361]
[1756277852887,1.2913915,111110.0,111100.0,0.1850724]
[1756277853189,1.55380271,111110.0,111100.0,0.44748361]
[1756277854386,2.35621392,111110.0,111100.0,1e-07]
[1756277854589,2.71858096,111110.0,111100.0,1e-07]
[1756277857188,2.45616975,111110.0,111100.0,0.0742401]
[1756277857386,2.45616975,111110.0,111100.0,0.1451601]
[1756277857993,2.45616975,111110.0,111100.0,0.0742401]
[1756277861498,2.69001096,111110.0,111100.0,1e-07]
[1756277864990,2.16518854,111110.0,111100.0,1e-07]
[1756277865190,2.69001096,111110.0,111100.0,1e-07]
[1756277867301,2.42735975,111110.0,111100.0,1e-07]
[1756277867495,2.42735975,111110.0,111100.0,0.0279601]
[1756277867699,2.42735975,111110.0,111100.0,0.0531701]
[1756277867700,2.45473975,111110.0,111100.0,0.0531701]
[1756277873905,1.62153975,111110.0,111100.0,0.0531701]
[1756277874100,1.37153975,111110.0,111100.0,0.0531701]
[1756277874302,2.20457975,111110.0,111100.0,0.42914131]
[1756277874805,2.20457975,111110.0,111100.0,0.1667301]
[1756277883115,1.94216854,111110.0,111100.0,0.1667301]
[1756277883612,2.20457975,111110.0,111100.0,0.1667301]
[1756277886512,2.20457975,111110.0,111100.0,0.0758301]
[1756277887014,2.35397975,111110.0,111100.0,0.1458901]
[1756277887216,2.20457975,111110.0,111100.0,0.1458901]
[1756277887417,2.20437975,111110.0,111100.0,0.1458901]
[1756277887718,1.94196854,111110.0,111100.0,0.1649401]
[1756277887919,2.20437975,111110.0,111100.0,0.1649401]
[1756277891111,2.20437975,111110.0,111100.0,4.01e-05]
[1756277891621,2.20437975,111110.0,111100.0,0.0548901]
[1756277892124,2.20437975,111110.0,111100.0,0.0769501]
[1756277892323,2.20437975,111110.0,111100.0,0.1148901]
[1756277892527,2.20437975,111110.0,111100.0,0.1470101]
[1756277894322,2.20437975,111110.0,111100.0,0.1660601]
[1756277894517,1.37153975,111110.0,111100.0,0.42847131]
[1756277894720,0.7193815,111110.0,111100.0,1.32007618]
[1756277895021,1.5520215,111110.0,111100.0,1.32007618]
[1756277895315,0.62938,111110.0,111100.0,1.41008568]
[1756277895518,0.32096,111110.0,111100.0,1.67249689]
[1756277896323,0.4109614,111110.0,111100.0,1.67249689]
[1756277897926,0.32096,111110.0,111100.0,2.50509689]
[1756277898226,0.3759614,111110.0,111100.0,2.50509689]
[1756277898429,0.21131,111110.0,111100.0,2.50509689]
[1756277898723,0.12941,111110.0,111100.0,2.50509689]
[1756277899120,0.2190014,111110.0,111100.0,2.50509689]
[1756277899315,0.2190014,111110.0,111100.0,2.50501689]
[1756277899521,0.2187714,111110.0,111100.0,2.50501689]
[1756277899823,0.2178714,111110.0,111100.0,2.50501689]
[1756277900222,0.2173514,111110.0,111100.0,2.50501689]
[1756277900620,0.3243014,111110.0,111100.0,2.50501689]
[1756277900824,0.3241214,111110.0,111100.0,2.50501689]
[1756277901313,0.3238314,111110.0,111100.0,2.50501689]
[1756277902129,0.3232714,111110.0,111100.0,2.50501689]
[1756277902326,0.2545714,111110.0,111100.0,2.50501689]
[1756277902527,0.1969514,111110.0,111100.0,2.50501689]
[1756277903127,0.10695,111110.0,111100.0,2.50501689]
[1756277903619,0.10257,111110.0,111100.0,2.50501689]
[1756277904226,0.1925714,111110.0,111100.0,1.41008568]
[1756277904422,0.2647014,111110.0,111100.0,2.24248568]
[1756277905431,0.2647014,111110.0,111100.0,2.06777916]
[1756277905616,0.2639014,111110.0,111100.0,2.06777916]
[1756277906628,0.2243314,111110.0,111100.0,1.23537916]
[1756277906827,0.2243314,111110.0,111100.0,2.06773916]
[1756277907227,0.2243314,111110.0,111100.0,2.06769916]
[1756277907725,0.2243314,111110.0,111100.0,1.23537916]
[1756277908024,0.2634414,111110.0,111100.0,1.23537926]
[1756277908220,0.3568414,111110.0,111100.0,0.89536966]
[1756277908425,0.3568414,111110.0,111100.0,1.72764966]
[1756277910225,0.3565814,111110.0,111100.0,0.89536966]
[1756277910826,0.3436114,111110.0,111100.0,0.89536966]
[1756277911032,0.3436114,111110.0,111100.0,0.98537926]
[1756277911331,0.3413114,111110.0,111100.0,0.98537926]
[1756277911733,0.3401714,111110.0,111100.0,0.98537926]
[1756277912133,0.2775914,111110.0,111100.0,0.98537926]
[1756277912733,0.2504314,111110.0,111100.0,0.98537926]
[1756277913435,0.2499614,111110.0,111100.0,0.98537926]
[1756277915433,0.33855082,111120.0,111100.0,0.98537926]
[1756277915632,0.26569962,111120.0,111110.0,0.8769359]
[1756277916537,0.23853962,111120.0,111110.0,0.8769359]
[1756277916738,0.23953962,111120.0,111110.0,0.8769359]
[1756277917536,0.24120962,111120.0,111110.0,0.8769359]
[1756277918740,0.35820962,111120.0,111110.0,0.8769359]
[1756277919638,0.34815962,111120.0,111110.0,0.8769359]
[1756277922541,0.34815962,111120.0,111110.0,0.52682]
[1756277922938,0.34815962,111120.0,111110.0,0.8769359]
[1756277925542,0.33033962,111120.0,111110.0,0.8769359]
[1756277925732,0.34815962,111120.0,111110.0,0.52682]
[1756277925937,0.34815962,111120.0,111110.0,0.8769359]
[1756277927347,0.61074803,111120.0,111110.0,0.78940841]
[1756277931150,0.61074803,111120.0,111110.0,0.42860841]
[1756277931449,0.61074803,111120.0,111110.0,0.78940841]
[1756277932348,0.34815962,111120.0,111110.0,0.78940841]
[1756277932554,0.61074803,111120.0,111110.0,0.78940841]
[1756277933551,0.34815962,111120.0,111110.0,0.78940841]
[1756277933857,0.61074803,111120.0,111110.0,0.78940841]
[1756277934460,0.6306297,111120.0,111110.0,0.78940841]
[1756277936460,0.6306297,111120.0,111110.0,0.4947]
[1756277936755,1.83406811,111120.0,111110.0,0.02847]
[1756277938758,1.82057129,111120.0,111110.0,0.16468]
[1756277939063,2.36574811,111120.0,111110.0,0.16468]
[1756277939469,2.39574811,111120.0,111110.0,0.16468]
[1756277940563,0.4582557,111110.0,111100.0,0.16522]
[1756277940763,0.4582557,111110.0,111100.0,0.17522]
[1756277940764,0.72084411,111110.0,111100.0,0.17522]
[1756277940964,1.07084411,111110.0,111100.0,0.17522]
[1756277941161,1.07084411,111110.0,111100.0,0.14332]
[1756277941362,1.07084411,111110.0,111100.0,0.36749841]
[1756277941363,1.03084411,111110.0,111100.0,0.36749841]
[1756277941563,0.72084411,111110.0,111100.0,0.43780841]
[1756277941766,1.02084411,111110.0,111100.0,0.17522]
[1756277942868,0.74084411,111110.0,111100.0,0.17522]
[1756277943356,1.11850333,111110.0,111100.0,0.17522]
[1756277943558,0.82850333,111110.0,111100.0,0.17522]
[1756277943967,0.80850333,111110.0,111100.0,0.17522]
[1756277944167,0.82850333,111110.0,111100.0,0.17522]
[1756277944365,1.13850333,111110.0,111100.0,0.13332]
[1756277944566,0.85850333,111110.0,111100.0,0.09491]
[1756277944767,0.80850333,111110.0,111100.0,0.09491]
[1756277944966,0.85850333,111110.0,111100.0,0.09491]
[1756277945368,0.96545333,111110.0,111100.0,0.09491]
[1756277945671,0.91545333,111110.0,111100.0,0.09491]
[1756277946171,0.91545333,111110.0,111100.0,0.16522]
[1756277946667,1.27625333,111110.0,111100.0,0.16522]
[1756277947070,1.29625333,111110.0,111100.0,0.16522]
[1756277948969,1.27625333,111110.0,111100.0,0.16522]
[1756277949170,2.11185333,111110.0,111100.0,0.16522]
[1756277950475,2.11181333,111110.0,111100.0,0.16522]
[1756277950865,1.7615657,111110.0,111100.0,0.16522]
[1756277951070,0.9260057,111110.0,111100.0,0.16522]
[1756277951270,2.10132333,111110.0,111100.0,0.16522]
[1756277951572,2.11137333,111110.0,111100.0,0.16522]
[1756277951972,1.75057333,111110.0,111100.0,0.16522]
[1756277953276,1.74068333,111110.0,111100.0,0.16522]
[1756277953977,1.3904357,111110.0,111100.0,0.16522]
[1756277954277,1.75073333,111110.0,111100.0,0.16522]
[1756277954578,1.4004857,111110.0,111100.0,0.16522]
[1756277954879,1.75073333,111110.0,111100.0,0.16522]
[1756277957179,1.75073333,111110.0,111100.0,0.05295]
[1756277957680,1.4004857,111110.0,111100.0,0.16609]
[1756277957876,1.75073333,111110.0,111100.0,0.16609]
[1756277959576,1.3997657,111110.0,111100.0,0.16609]
[1756277959778,1.75001333,111110.0,111100.0,0.16609]
[1756277961480,1.80757333,111110.0,111100.0,0.16609]
[1756277961679,1.89217333,111110.0,111100.0,0.16609]
[1756277962080,1.05761333,111110.0,111100.0,0.16609]
[1756277962380,1.89197333,111110.0,111100.0,0.09457]
[1756277962582,1.05761333,111110.0,111100.0,0.09457]
[1756277962781,1.89197333,111110.0,111100.0,0.09457]
[1756277963381,1.80441191,111110.0,111100.0,0.42877621]
[1756277963579,1.5417257,111110.0,111100.0,0.42877621]
[1756277963878,1.80441191,111110.0,111100.0,0.42877621]
[1756277964780,0.97005191,111110.0,111100.0,0.42877621]
[1756277964980,1.80409191,111110.0,111100.0,0.42877621]
[1756277965480,1.80409191,111110.0,111100.0,0.31773621]
[1756277965780,1.80409191,111110.0,111100.0,0.41257621]
[1756277965979,1.80409191,111110.0,111100.0,0.43087621]
[1756277966472,1.80377191,111110.0,111100.0,0.43087621]
[1756277966672,0.6973157,111110.0,111100.0,0.43087621]
[1756277966873,1.5319157,111110.0,111100.0,0.69356242]
[1756277967076,1.79460191,111110.0,111100.0,0.69356242]
[1756277967279,1.79460191,111110.0,111100.0,0.43087621]
[1756277967477,1.79460191,111110.0,111100.0,0.16819]
[1756277967676,1.79460191,111110.0,111100.0,0.69356242]
[1756277968379,1.79460191,111110.0,111100.0,0.43087621]
[1756277968688,1.79464191,111110.0,111100.0,0.43087621]
[1756277968981,0.96000191,111110.0,111100.0,0.43087621]
[1756277969181,1.80449191,111110.0,111100.0,0.43087621]
[1756277972880,1.5418057,111110.0,111100.0,0.43087621]
[1756277973081,1.80449191,111110.0,111100.0,0.43087621]
[1756277973588,1.5418057,111110.0,111100.0,0.43087621]
[1756277973780,1.80449191,111110.0,111100.0,0.43087621]
[1756277984592,1.5418057,111110.0,111100.0,0.16819]
[1756277984794,1.79280191,111110.0,111100.0,0.69356242]
[1756277985092,0.96000191,111110.0,111100.0,0.69356242]
[1756277985288,1.79436191,111110.0,111100.0,0.16819]
[1756277985488,1.79436191,111110.0,111100.0,0.43087621]
[1756277985786,0.6973157,111110.0,111100.0,0.69356242]
[1756277985982,1.79428191,111110.0,111100.0,0.69356242]
[1756277986695,1.79428191,111110.0,111100.0,0.78357232]
[1756277987593,0.96000191,111110.0,111100.0,0.78357232]
[1756277987792,1.79420191,111110.0,111100.0,0.78357232]
[1756277988091,1.79420191,111110.0,111100.0,0.69356242]
[1756277989295,1.80425191,111110.0,111100.0,0.69356242]
[1756277989490,0.6973157,111110.0,111100.0,0.90356242]
[1756277989691,1.5313157,111110.0,111100.0,1.26436242]
[1756277989890,1.5313157,111110.0,111100.0,1.05436242]
[1756277990382,1.1909316,111110.0,111100.0,1.05436242]
[1756277990984,1.1906116,111110.0,111100.0,1.05436242]
[1756277991194,1.1906116,111110.0,111100.0,1.14437232]
[1756277993794,0.3569316,111110.0,111100.0,1.39437232]
[1756277994100,1.45261781,111110.0,111100.0,1.39437232]
[1756277994299,1.1899316,111110.0,111100.0,1.39437232]
[1756277995002,0.3569316,111110.0,111100.0,1.39437232]
[1756277995299,1.1895316,111110.0,111100.0,1.39437232]
[1756277996799,1.1895316,111110.0,111100.0,1.30436242]
[1756277998102,1.45221781,111110.0,111100.0,1.30436242]
[1756278000107,1.45221781,111110.0,111100.0,0.77899]
[1756278000313,1.45221781,111110.0,111100.0,1.30436242]
[1756278000912,1.46226781,111110.0,111100.0,0.59105621]
[1756278001109,1.46226781,111110.0,111100.0,0.38513]
[1756278001315,1.46226781,111110.0,111100.0,0.02901]
[1756278001615,1.46226781,111110.0,111100.0,4e-05]
[1756278001616,2.35306781,111110.0,111100.0,4e-05]
[1756278001810,2.07306781,111110.0,111100.0,4e-05]
[1756278002314,2.07306781,111110.0,111100.0,0.02789]
[1756278002918,1.24046781,111110.0,111100.0,0.02789]
[1756278003116,2.07266781,111110.0,111100.0,0.11296]
[1756278003314,2.07266781,111110.0,111100.0,0.33859621]
[1756278003519,2.01510781,111110.0,111100.0,0.33859621]
[1756278004017,0.2987016,111110.0,111100.0,1.05341242]
[1756278004218,1.1315716,111110.0,111100.0,1.35342352]
[1756278004513,0.19155,111110.0,111100.0,1.60342352]
[1756278004715,0.281553,111110.0,111100.0,1.60342352]
[1756278005918,0.281553,111110.0,111100.0,1.35342352]
[1756278006119,0.339093,111110.0,111100.0,1.35342352]
[1756278006615,0.339093,111110.0,111100.0,1.60342352]
[1756278007322,0.339093,111110.0,111100.0,1.42813264]
[1756278007521,0.24909,111110.0,111100.0,1.42813264]
[1756278007721,0.21409,111110.0,111100.0,1.42813264]
[1756278008324,0.3040912,111110.0,111100.0,1.42813264]
[1756278008622,0.3040912,111110.0,111100.0,2.26137264]
[1756278009024,0.3040912,111110.0,111100.0,1.9112911]
[1756278009213,0.3040912,111110.0,111100.0,2.26137264]
[1756278009520,0.3040912,111110.0,111100.0,2.26237264]
[1756278010119,0.21409,111110.0,111100.0,2.26237264]